Cogmind - Beta 14 @@@ ROGUE MODE // 2024.10.11 @ 09:49:23 Player: Schrodingersyndrome Result: Self-destructed Performance ------------- Evolutions (1) 500 Regions Visited (4) 800 Robots Destroyed (58) 290 Value Destroyed (1550) 1550 Prototype IDs (1) 20 Alien Tech Used (0) 0 Bonus (331) 331 TOTAL SCORE: 3491 Bonus ------- High Alert Combat Kills 131 Entered Garrisons 200 Cogmind --------- Core Integrity 104/400 Matter 218/300 Energy 199/250 System Corruption 9% Temperature Warm (133) Movement Flying (31) Location -9/Garrison Parts ------- > --- POWER (1) -------- Ion Engine > --- PROPULSION (4) --- Flight Unit Flight Unit Flight Unit Flight Unit > --- UTILITY (2) ------ (None) > --- WEAPON (2) ------- Beam Rifle Grenade Launcher > --- INVENTORY (5) ---- Improved Ion Engine Flight Unit Structural Scanner Beam Rifle Beam Rifle Peak State ------------ > --- POWER ------------ Light Ion Engine > --- PROPULSION ------- Flight Unit Flight Unit Flight Unit Flight Unit > --- UTILITY ---------- Small Storage Unit Transport Network Coupler > --- WEAPON ----------- Shotgun Shotgun > --- INVENTORY -------- Ion Engine Flight Unit Structural Scanner Improved Terrain Scanner Small Laser Shotgun Grenade Launcher [Rating: 12] Favorites ----------- Power Light Ion Engine Engine Light Ion Engine Propulsion Flight Unit Leg Aluminum Leg Wheel Wheel Flight Unit Flight Unit Utility Small Storage Unit Device Seismic Detector Storage Small Storage Unit Processor Transport Network Coupler Weapon EM Pulse Gun Energy Gun EM Pulse Gun Ballistic Gun Shotgun Launcher Grenade Launcher Build | -11 -10 -9 -9 -9 ------- Run | Yrd Mat Mat Sto Gar Slots Evolved 2 | . . 2 . . Power . | . . . . . Propulsion 2 | . . 2 . . Utility . | . . . . . Weapon . | . . . . . Parts Attached 43 | 8 . 10 4 21 Power 8 | 2 . 2 1 3 Engine 8 | 2 . 2 1 3 Core . | . . . . . Reactor . | . . . . . Propulsion 17 | 2 . 4 . 11 Treads . | . . . . . Leg 4 | . . . . 4 Wheel 6 | 2 . 4 . . Hover . | . . . . . Flight 7 | . . . . 7 Utility 4 | 2 . 1 1 . Device 2 | 1 . 1 . . Storage 1 | 1 . . . . Processor 1 | . . . 1 . Hackware . | . . . . . Protection . | . . . . . Artifact . | . . . . . Weapon 14 | 2 . 3 2 7 Energy Gun 6 | 2 . 2 . 2 Energy Cannon . | . . . . . Ballistic Gun 4 | . . . 2 2 Ballistic Cannon . | . . . . . Launcher 4 | . . 1 . 3 Special Weapon . | . . . . . Impact Weapon . | . . . . . Slashing Weapon . | . . . . . Piercing Weapon . | . . . . . Special Melee Weapon . | . . . . . Unidentified Prototypes 1 | . . 1 . . Parts Lost 16 | . . 9 . 7 Power 4 | . . 3 . 1 Propulsion 7 | . . 3 . 4 Utility 2 | . . 1 . 1 Weapon 3 | . . 2 . 1 Highest Loss Streak 4 | . . 4 . 4 To Critical Strikes . | . . . . . Average Slot Usage (%) 92 | . 100 88 82 95 Engine 9 | . 14 7 7 10 Leg 3 | . . . . 6 Wheel 15 | . 28 42 33 2 Flight 19 | . . . . 31 Device 2 | . 14 8 1 . Storage 11 | . 14 11 11 10 Processor 7 | . . . 9 10 Energy Gun 8 | . 28 17 . 5 Ballistic Gun 8 | . . . 20 9 Launcher 4 | . . 1 . 6 Peak Build Rating 12 | 8 8 9 10 12 Average Rating 9 | 6 7 8 9 10 On Entrance 6 | . 7 8 9 10 Naked Turns . | . . . . . Heaviest Build 18 | 13 13 13 14 18 Greatest Support 46 | 26 26 46 30 40 Greatest Overweight (x) 4 | 3 . 1 . 4 Average Overweight (x) . | . . . . . Largest Inventory Capacity 8 | 8 8 8 8 8 Average Capacity 7 | 7 8 8 8 7 Most Carried 8 | 7 8 7 4 8 Average Carried 5 | 4 6 5 3 6 Final Capacity 8 | 8 8 8 8 5 Final Carried 8 | 6 8 2 4 5 Class Distribution -------------------- 47% | Mutant 28% | Scavenger-Mutant 23% | Scavenger-Sprinter Dominant Class ---------------- Mutant | -10/Materials Mutant | -9/Materials Mutant | -9/Storage Scavenger-Sprinter | -9/Garrison Resources | -11 -10 -9 -9 -9 ----------- Run | Yrd Mat Mat Sto Gar Matter Collected 868 | 280 . 24 113 451 Remotely . | . . . . . Salvage Created 1663 | 316 18 560 245 524 Parts 141 | 26 . 39 16 60 Haulers Intercepted 3 | . . 1 2 . Recyclers Shooed 4 | 2 . 2 . . Parts Field Recycled . | . . . . . Retrieved Matter . | . . . . . Parts Self-Destructed . | . . . . . Prevented . | . . . . . Kills | -11 -10 -9 -9 -9 ------- Run | Yrd Mat Mat Sto Gar Combat Hostiles Destroyed 38 | . . 7 3 28 Guns 17 | . . 6 3 8 AOE 21 | . . 1 . 20 Classes Destroyed 11 | 2 1 5 1 2 Worker 1 | . . . 1 . Builder 3 | . . 3 . . Tunneler 9 | 9 . . . . Hauler 3 | . . 1 2 . Recycler 3 | 1 . 2 . . Operator 1 | . 1 . . . Swarmer 16 | . . . . 16 Grunt 13 | . . 4 1 8 Duelist 1 | . . 1 . . Sentry 7 | . . 2 2 3 Specialist 1 | . . . . 1 Best Kill Streak 11 | 4 1 6 2 11 Combat Bots Only 11 | . . 4 2 11 Max Kills in Single Turn 6 | 1 1 3 1 6 Gunslinging . | . . . . . Exploded 6 | . . 1 . 6 Melee . | . . . . . Uniques/NPCs Destroyed . | . . . . . Combat | -11 -10 -9 -9 -9 -------- Run | Yrd Mat Mat Sto Gar Hostile Shots Fired 148 | . . 36 7 105 Missed 55 | . . 11 5 39 Damage Taken 1528 | 18 . 738 25 747 Core 296 | . . 139 . 157 Absorbed by Shields . | . . . . . Core Remaining (%) 100 | 100 100 . . . Volleys Fired 97 | 20 2 30 11 34 Largest 2 | 2 2 2 2 2 Hottest 96 | 80 80 80 56 96 Shots Fired 158 | 40 4 44 21 49 Gun 142 | 40 4 40 21 37 Cannon . | . . . . . Launcher 16 | . . 4 . 12 Special . | . . . . . Kinetic 41 | . . . 20 21 Thermal 25 | . . 8 1 16 Explosive 16 | . . 4 . 12 Electromagnetic 76 | 40 4 32 . . Robot Hit Streak 15 | 4 3 15 8 7 Robot Miss Streak 5 | 4 1 2 5 3 Penetration Max . | . . . . . Secondary Targets 1 | . . . . 1 Max Gunslinging Chain 1 | . . . . 1 Shots Hit Robots 102 | 22 3 34 15 28 Core Hits 80 | 11 1 20 11 37 Critical Kills . | . . . . . Critical Parts Destroyed . | . . . . . Critical Strikes . | . . . . . Melee Attacks . | . . . . . Impact . | . . . . . Slashing . | . . . . . Piercing . | . . . . . Sneak Attacks . | . . . . . Combat Hostiles . | . . . . . Follow-up Attacks . | . . . . . Damage Inflicted 2683 | 322 50 719 237 1355 Guns 1296 | 293 50 387 237 329 Cannons . | . . . . . Explosions 1387 | 29 . 332 . 1026 Melee . | . . . . . Ramming . | . . . . . Kinetic 477 | . . . 219 258 Thermal 320 | 29 . 202 18 71 Explosive 1222 | . . 196 . 1026 Electromagnetic 664 | 293 50 321 . . Impact . | . . . . . Slashing . | . . . . . Piercing . | . . . . . Highest Corruption 9 | . . 9 9 9 Average Corruption 9 | . . 9 9 9 Corruption Purged . | . . . . . Corruption Blocked . | . . . . . Effects 32 | . . 1 2 29 Message Errors 4 | . . . 1 3 Matter Fused 10 | . . . . 10 Heat Flow Errors 6 | . . 1 . 5 Energy Discharges 4 | . . . 1 3 Parts Rejected 1 | . . . . 1 Parts Fused 1 | . . . . 1 Data Loss (minor) 3 | . . . . 3 Data Loss (major) 1 | . . . . 1 Misfires 1 | . . . . 1 Weapon Failures 1 | . . . . 1 Overload Shots . | . . . . . Overflow Damage 15 | . . 15 . . Projectiles . | . . . . . Explosions 15 | . . 15 . . Melee . | . . . . . Knockbacks . | . . . . . Impact . | . . . . . Kinetic . | . . . . . Secondary . | . . . . . Self-Inflicted Damage 148 | 18 . 72 . 58 Shots 7 | 1 . 2 . 4 Rammed . | . . . . . Targets Rammed . | . . . . . Kicked . | . . . . . Crushed . | . . . . . Highest Temperature 278 | 104 18 176 7 278 Average Temperature 64 | 30 12 55 4 91 Received Heat Transfer 330 | . . 147 15 168 Effects 4 | . . . . 4 Energy Bleed 2 | . . . . 2 Interference 2 | . . . . 2 Siege Activations . | . . . . . Robots Corrupted . | . . . . . Combat Hostiles . | . . . . . Parts Fried 5 | . 2 3 . . Impact Corruptions . | . . . . . Robots Melted . | . . . . . Combat Hostiles . | . . . . . Parts Melted 1 | . . 1 . . Heat Transferred 622 | 50 . 350 37 185 Parts Sabotaged . | . . . . . Parts Stolen . | . . . . . Parts Stripped . | . . . . . Power Chain Reactions 3 | 1 . 2 . . Alert | -11 -10 -9 -9 -9 ------- Run | Yrd Mat Mat Sto Gar Peak Influence 826 | 50 52 217 224 826 Initial 145 | . 32 21 78 145 Average 299 | 25 44 114 129 529 Maximum Alert Level 3 | . . 1 1 3 Low Security (%) 57 | 100 100 93 92 18 Level 1 3 | . . 6 7 2 Level 2 21 | . . . . 43 Level 3 17 | . . . . 36 Level 4 . | . . . . . Level 5 . | . . . . . High Security . | . . . . . Max Security . | . . . . . Squads Dispatched 1 | . . . 1 . Investigation . | . . . . . Extermination . | . . . . . Reinforcement . | . . . . . Assault . | . . . . . Garrison 1 | . . . 1 . Intercept . | . . . . . Searches Triggered . | . . . . . Construction Impeded . | . . . . . Haulers Reinforced . | . . . . . Active Scanning Responses . | . . . . . Cargo Convoy Interrupts . | . . . . . Stealth | -11 -10 -9 -9 -9 --------- Run | Yrd Mat Mat Sto Gar Distress Signals . | . . . . . Communications Jammed . | . . . . . Distress Signals . | . . . . . Times Spotted 39 | . 1 9 3 26 Peak Tracking Total 11 | . . 3 2 11 Tactical Retreats . | . . . . . Traps | -11 -10 -9 -9 -9 ------- Run | Yrd Mat Mat Sto Gar Traps Triggered 9 | . . . . 9 Indirectly . | . . . . . Trap Hack Attempts . | . . . . . Triggered . | . . . . . Disarmed . | . . . . . Reprogrammed . | . . . . . Reused . | . . . . . Traps Extracted . | . . . . . Installed . | . . . . . Triggered . | . . . . . Machines | -11 -10 -9 -9 -9 ---------- Run | Yrd Mat Mat Sto Gar Machines Disabled 3 | . . 1 . 2 Max in Single Turn 1 | . . 1 . 1 Garrison Relay 2 | . . . . 2 Machines Repaired . | . . . . . Machines Dismantled . | . . . . . Machines Sabotaged . | . . . . . Overloaded Fab Kills . | . . . . . Hacking | -11 -10 -9 -9 -9 --------- Run | Yrd Mat Mat Sto Gar Machines Accessed 8 | . 1 1 2 4 Terminals 7 | . 1 1 1 4 Fabricators . | . . . . . Repair Stations . | . . . . . Recycling Units . | . . . . . Scanalyzers . | . . . . . Garrison Access 1 | . . . 1 . Total Hacks 16 | . 2 4 2 8 Successful 4 | . . 1 1 2 Failed 12 | . 2 3 1 6 Catastrophic . | . . . . . Database Lockouts . | . . . . . Manual 7 | . 2 4 1 . Terminals 15 | . 2 4 1 8 Fabricators . | . . . . . Repair Stations . | . . . . . Recycling Units . | . . . . . Scanalyzers . | . . . . . Garrison Access 1 | . . . 1 . Terminal Hacks 2 | . . . . 2 Open Door 1 | . . . . 1 Patrol Navigation 1 | . . . . 1 Fabricator Hacks . | . . . . . Repair Station Hacks . | . . . . . Recycling Unit Hacks . | . . . . . Scanalyzer . | . . . . . Garrison Access Hacks 1 | . . . 1 . Unlock Access 1 | . . . 1 . Unauthorized Hacks 1 | . . 1 . . Terminals 1 | . . 1 . . Botnet 1 | . . 1 . . Fabricators . | . . . . . Repair Stations . | . . . . . Recycling Units . | . . . . . Scanalyzers . | . . . . . Garrison Access . | . . . . . Data Cores Recovered . | . . . . . Used . | . . . . . Hacking Detections 7 | . 1 1 2 3 Full Trace Events 1 | . 1 . . . Feedback Events . | . . . . . Feedback Blocked . | . . . . . Robot Schematics Acquired . | . . . . . Robots Built . | . . . . . Authchips . | . . . . . Time . | . . . . . Total Robot Build Rating . | . . . . . Part Schematics Acquired . | . . . . . Parts Built . | . . . . . Authchips . | . . . . . Time . | . . . . . Total Part Build Rating . | . . . . . Parts Repaired . | . . . . . Time . | . . . . . Parts Recycled . | . . . . . Recycled Matter . | . . . . . Retrieved Matter . | . . . . . Retrieved Components . | . . . . . Parts Scanalyzed . | . . . . . Part Schematics Acquired . | . . . . . Parts Damaged . | . . . . . Bothacking | -11 -10 -9 -9 -9 ------------ Run | Yrd Mat Mat Sto Gar Used RIF Installer . | . . . . . Robots Hacked . | . . . . . Non-combat . | . . . . . Combat . | . . . . . Robot Hacks Applied . | . . . . . Relay Couplers Released 10 | . . . . 10 Machine Destruction 10 | . . . . 10 Fabnet Peak Effective % . | . . . . . Robots Rewired . | . . . . . Allies Hacked . | . . . . . Hacks Repelled . | . . . . . Allies | -11 -10 -9 -9 -9 -------- Run | Yrd Mat Mat Sto Gar Total Allies . | . . . . . Largest Group . | . . . . . Highest-Rated Group . | . . . . . Highest-Rated Ally . | . . . . . Total Orders . | . . . . . Ally Attacks . | . . . . . Total Damage . | . . . . . Kills . | . . . . . Allies Corrupted . | . . . . . Allies Melted . | . . . . . Intel | -11 -10 -9 -9 -9 ------- Run | Yrd Mat Mat Sto Gar Robot Analysis Total . | . . . . . Derelict Logs Recovered . | . . . . . Drone Launches . | . . . . . Drone Recoveries . | . . . . . Exploration | -11 -10 -9 -9 -9 ------------- Run | Yrd Mat Mat Sto Gar Turns Passed 1413 | 263 93 215 145 697 Spaces Moved 1114 | 136 95 100 116 667 Core 12 | 11 . . . 1 Treads . | . . . . . Legs 85 | . . . . 85 Wheels 465 | 125 95 100 116 29 Hover . | . . . . . Flight 552 | . . . . 552 Fastest Speed 31 | 50 90 80 80 31 Average Speed 74 | 90 90 85 80 66 Slowest Speed 280 | 200 90 95 80 280 Overloaded Moves . | . . . . . Propulsion Burnouts . | . . . . . Robots Hopped . | . . . . . Cave-ins Triggered 1 | . . 1 . . Exploration Rate (%) 26 | 5 19 12 20 77 Regions Visited 4 Branch Regions 1 Pre-discovered Areas . | . . . . . Known Exits Taken 1 | . . . 1 . Unknown Exits Taken 3 | 1 1 1 . . Scrap Searched . | . . . . . Spaces Dug . | . . . . . Terrain Destroyed 52 | 4 . 26 . 22 Melee . | . . . . . Projectile . | . . . . . AOE 52 | 4 . 26 . 22 Terrain Rammed . | . . . . . Walls Destroyed . | . . . . . Machines Disabled . | . . . . . Actions | -11 -10 -9 -9 -9 --------- Run | Yrd Mat Mat Sto Gar Total 1528 | 233 98 184 145 868 Wait 136 | 59 . 41 12 24 Move 1110 | 135 94 99 115 667 Hop . | . . . . . Pick Up 26 | 8 2 3 1 12 Fast Attach 20 | 8 . 1 3 8 Attach 13 | . . 8 . 5 Detach 1 | . . . 1 . Swap 10 | . . 1 1 8 Drop 15 | 3 . 1 1 10 Fire 97 | 20 2 30 11 34 Melee . | . . . . . Ram . | . . . . . Kick . | . . . . . Crush . | . . . . . Escape Stasis 100 | . . . . 100 Rewire . | . . . . . Trap . | . . . . . Miscellaneous . | . . . . . Route ------- -11/Scrapyard -10/Materials -9/Materials -9/Storage -9/Garrison (discovered 3 exits: [*Rec x3]) History --------- Turn | Location | Event 8 | -11/Scrapyard | Discovered new exit (range 15) 264 | -11/Scrapyard | Entered Materials 314 | -10/Materials | Build established: Mutant 331 | -10/Materials | Discovered new exit (range 15) 357 | -10/Materials | Entered another Materials area 357 | -9/Materials | Evolved 2 slots: Propulsion x2 535 | -9/Materials | Discovered new exit (range 10) 536 | -9/Materials | Lost 4 parts (1p1u2w) 563 | -9/Materials | Crushed by falling debris 572 | -9/Materials | Entered Storage 594 | -9/Storage | Lost 4 parts (1p3n) 645 | -9/Storage | Garrison activated, responded to threat 716 | -9/Storage | Identified exit to Garrison 717 | -9/Storage | Entered Garrison 747 | -9/Garrison | Triggered checkpoint 835 | -9/Garrison | Triggered checkpoint 841 | -9/Garrison | Triggered checkpoint 863 | -9/Garrison | Core integrity fell below 50% 883 | -9/Garrison | Destroyed 11 combat bots 989 | -9/Garrison | Discovered new exit (range 10) 993 | -9/Garrison | Triggered checkpoint 1053 | -9/Garrison | Triggered checkpoint 1065 | -9/Garrison | Discovered new exit (range 13) 1069 | -9/Garrison | Triggered checkpoint 1103 | -9/Garrison | Destroyed 9 combat bots 1109 | -9/Garrison | Lost 4 parts (1p2n1w) 1134 | -9/Garrison | Discovered new exit (range 8) 1157 | -9/Garrison | Garrison Relay disabled 1163 | -9/Garrison | Triggered checkpoint 1353 | -9/Garrison | Garrison Relay disabled 1414 | -9/Garrison | Self-destructed Last Messages --------------- Relay Coupler [NC] tumbles out of relay unit. Relay Coupler [Duelist] tumbles out of relay unit. Relay Coupler [Demolisher] tumbles out of relay unit. Relay Coupler [Grunt] tumbles out of relay unit. Relay Coupler [Duelist] tumbles out of relay unit. System corrupted: Matter fused (-6). Discarded Transport Network Coupler. Dropped Shotgun. Dropped Sml. Laser. Acquired Beam Rifle. Connecting with Door Terminal... >>Open(Door) Sealed Heavy Doors opened. G-34 Mercenary springs to life. Sml. Storage Unit destroyed. G-34 Mercenary destroyed. System corrupted: Energy discharge (-66). G-34 Mercenary destroyed. Acquired 44 matter. Acquired 40 matter. Map ----- +----------------------------------------------------+ | ????????????# #?????????????????????????????? | | ????????????# ###?????????????????????????????? | | ????????????# #???????????????????????????????? | | ????????????# #???????????????????????????????? | | ????????????# #???????????????????????????????? | | ????????????# #???????????????????????????????? | | ????????????# #???????????????????????????????? | | ????????????# #???????????????????????????????? | | ????????????# #???????????????????????????????? | | ?############ ##??????????????????????????????? | | ?# #??????????????????????????????? | | ?# #??????????????????????????????? | | ?# ########### #??????????????????????????????? | | ?# #?????????# #?#####????????????????????????? | | ?# #?????????# #?#[ !#????????????????????????? | | ?# #?????????#!###!= ##########???????????????? | | ?# #?????????#= [! ! ! !! #???????????????? | | ?# #????????##+####=#######!!!#???????????????? | | ?# #????????# #??# #????#"" ""#??????????????? | | ?# #????????## #??# #????#######??????????????? | | ?# ###???????# #??# #?????????????????????????? | | ## # #???????# #??# #???????#####?????????????? | | ######### #### #???????# #?????????????? | | * # ######### =[#?????????????? | | ## ########## # [[## *#?????????????? | | ## #### #????????#[^[ @ != #?????????????? | | ##[ #### #????????###!!!!##T#! #?????????????? | | [ # #??????????#############?????????????? | | ####????????????????????????????????????? | | =*#???????????????????????????????????????? | | #???????????#####???????????????????????? | | ## ###???????????#"# #???????????????????????? | | ## #?????????????#"! #???????????????????????? | | ######????????# !!#???????????????????????? | | # #????????#" !#???????????????????????? | | #### #????????#"# #########???????????????? | | ## ##??# #????????### "#???????????????? | | ## #???# #??????????# #####"T"#???????????????? | | ## #???# #??????????# #???#####???????????????? | | ?# #???# #??????????# ###?????????????????????? | | ?# #???# ############ #?????????????????????? | | ?# #???# #?????????????????????? | | ?# #???# ###### ##### * #?????????????????????? | | ?# ##############???# [=#?????????????????????? | | ?# #???# *=#?????????????????????? | | ?# ##### ###?????????????????????? | | ?#######T###### #???????????????????????? | | ???????###????# ##### #???????????????????????? | | ??????????????# #???# ###?????????????????????? | | ??????????????# #???# ##????????????????????? | +----------------------------------------------------+ Best States ------------- Heat Dissipation 28 Energy Generation 12 Energy Capacity 265 Matter Stores 300 Matter Capacity 300 Sight Range 16 Terrain Scan Density 10 Evasion (%) 63 Item Schematics ----------------- None Robot Schematics ------------------ None Fabricated ------------ Nothing Alien Tech Used ----------------- None Achievements -------------- Quick And Dirty Challenges ------------ None Game ------ Seed FactoryPrecisionPod Manual? 0 Play Time 00:29:26 Cumulative 6.0 hours Start 2024.10.10 @ 21:04:47 End 2024.10.11 @ 09:49:23 Sessions 8 Manual Loads 0 Difficulty Rogue Special Mode None Game No. 10 Rogue 10 Adventurer 0 Explorer 0 Win Type - Total 0 Types 0/0/0/0/0/0/0/0/0 Lore% 4 Gallery% 10 Achievement% 12 Wizard Run 0 Options --------- Layout 0 ASCII 0 Keyboard 0 Movement Mouse Keybinds 0 Fullscreen 2 Font 24/Smallcaps Map View 76x50 Zoom Use 0% Tactical HUD 0 Map Filters NONE Filters NONE Steam 1 RUN: ce1497be-726b-42a9-8159-68f0e67d6498